fUSD/lending_fUSD_20251118
["ID","MTS","AMOUNT","RATE_DAILY","PERIOD"]
[394333289,1763465355621,-500.0,0.00016181,2]
[394333290,1763465355814,-500.0,0.00016181,2]
[394333291,1763465355823,-500.0,0.00016181,2]
[394333292,1763465355832,-500.0,0.00016181,2]
[394333293,1763465355841,-500.0,0.00016181,2]
[394333294,1763465355850,-500.0,0.00016181,2]
[394333295,1763465355859,-776.62000992,0.00016182,2]
[394333296,1763465355953,-500.0,0.00016181,2]
[394333297,1763465355972,-223.39999008,0.00016181,2]
[394333298,1763465355988,-276.60000992,0.00016181,2]
[394333299,1763465355997,-223.39999008,0.00016181,2]
[394333300,1763465356016,-276.60000992,0.00016181,2]
[394333301,1763465356025,-223.39999008,0.00016181,2]
[394333302,1763465356043,-276.60000992,0.00016181,2]
[394333303,1763465356051,-500.0,0.00016181,2]
[394333304,1763465356060,-500.0,0.00016181,2]
[394333305,1763465356070,-500.0,0.00016181,2]
[394333306,1763465356079,-500.0,0.00016181,2]
[394333307,1763465356088,-500.0,0.00016181,2]
[394333308,1763465356097,-3776.61000992,0.00016182,2]
[394333309,1763465356121,-500.0,0.00016181,2]
[394333310,1763465356138,-500.0,0.00016182,2]
[394333311,1763465356156,-500.0,0.00016181,2]
[394333312,1763465356168,-500.0,0.00016182,2]
[394333313,1763465356182,-6000.01,0.00016182,2]
[394333314,1763465356199,-10000.01,0.00016182,2]
[394333316,1763465360482,-10000.01,0.00016182,2]
[394333317,1763465360649,-10000.01,0.00016182,2]
[394333318,1763465360775,-10000.01,0.00016182,2]
[394333319,1763465405103,393.95042802,0.00016082,2]
[394333320,1763465410049,393.950428,0.00016096,2]
[394333321,1763465411160,6812.984218,0.00016098,2]
[394333322,1763465415048,393.950428,0.00016109,2]
[394333343,1763465431541,-393.950428,0.00016123,2]
[394333344,1763465431551,-393.950428,0.00016136,2]
[394333345,1763465431560,-393.950428,0.0001615,2]
[394333346,1763465431569,-500.0,0.00016179,2]
[394333347,1763465431579,-4792.34633293,0.00016181,2]
[394333348,1763465431589,-300.0,0.00016181,2]
[394333349,1763465431599,-300.0,0.00016181,2]
[394333350,1763465431611,-300.0,0.00016181,2]
[394333351,1763465431624,-550.0,0.00016181,2]
[394333352,1763465431633,-1200.0,0.00016181,2]
[394333353,1763465431646,-104713.65813631,0.00016182,2]
[394333354,1763465431657,-166.66,0.0001625,2]
[394333355,1763465431666,-195.0,0.00016279,2]
[394333356,1763465431676,-1200.0,0.0001628,2]
[394333357,1763465431685,-908.86,0.00016281,2]
[394333358,1763465431695,-500.0,0.00016281,2]
[394333359,1763465431704,-500.0,0.00016281,2]
[394333360,1763465431713,-500.0,0.00016281,2]
[394333361,1763465431722,-1000.0,0.00016299,2]
[394333362,1763465431731,-500.0,0.00016438,2]
[394333363,1763465431741,-500.0,0.00016438,2]
[394333364,1763465431750,-500.0,0.00016438,2]
[394333365,1763465431759,-500.0,0.00016438,2]
[394333366,1763465431768,-500.0,0.00016438,2]
[394333367,1763465431777,-518.49479045,0.00016438,2]
[394333368,1763465431787,-5001.07,0.00016438,2]
[394333369,1763465431796,-10165.64,0.00016477,2]
[394333370,1763465431805,-9999.99,0.00016477,2]
[394333371,1763465431814,-150.99,0.00016477,2]
[394333372,1763465431823,-1071.04,0.00016477,2]
[394333373,1763465431832,-14408.64,0.00016477,2]
[394333374,1763465431841,-1000.0,0.00016497,2]
[394333375,1763465431850,-4567.0,0.00016509,2]
[394333376,1763465431859,-372.0,0.00016516,2]
[394333377,1763465431868,-200.0,0.00016521,2]
[394333390,1763465432088,-4567.0,0.0001654,2]
[394333391,1763465432098,-908.86,0.00016555,2]
[394333392,1763465432108,-150.0,0.0001656,2]
[394333393,1763465432119,-5712.11746887,0.00016609,2]
[394333394,1763465432133,-4706.86615942,0.00016609,2]
[394333395,1763465432143,-300.11,0.00016644,2]
[394333396,1763465432152,-150.0,0.0001665,2]
[394333397,1763465432162,-1239.0,0.000167,2]
[394333398,1763465432172,-1815.0,0.000167,2]
[394333399,1763465432182,-1291.42974756,0.00016733,2]
[394333400,1763465432191,-166.66,0.00016786,2]
[394333401,1763465432201,-372.0,0.00016792,2]
[394333402,1763465432210,-908.86,0.00016829,2]
[394333403,1763465432219,-201.00892,0.0001683,2]
[394333404,1763465432228,-222.2989347,0.00016833,2]
[394333405,1763465432237,-151.0,0.00016836,2]
[394333406,1763465432246,-151.0,0.00016836,2]
[394333407,1763465432256,-151.0,0.00016841,2]
[394333408,1763465432266,-151.0,0.00016845,2]
[394333409,1763465432275,-372.0,0.00016869,2]
[394333410,1763465432285,-1076.0,0.000169,2]
[394333411,1763465432294,-150.0,0.000169,2]
[394333412,1763465432304,-150.0,0.000169,2]
[394333413,1763465432313,-150.0,0.000169,2]
[394333414,1763465432322,-150.0,0.000169,2]
[394333415,1763465432332,-150.0,0.000169,2]
[394333416,1763465432344,-500.0,0.000169,2]
[394333417,1763465432353,-150.0,0.000169,2]
[394333418,1763465432362,-200.0,0.000169,2]
[394333419,1763465432371,-150.0,0.000169,2]
[394333420,1763465432382,-150.0,0.000169,2]
[394333421,1763465432392,-150.0,0.0001692,2]
[394333422,1763465432401,-151.0,0.00016935,2]
[394333423,1763465432410,-56063.479307,0.00016938,2]
[394333424,1763465432420,-201.00893,0.0001695,2]
[394333425,1763465432429,-500.0,0.00016973,2]
[394333426,1763465432438,-503.20529526,0.00016973,2]
[394333427,1763465432448,-500.0,0.00016973,2]
[394333428,1763465432458,-500.0,0.00016973,2]
[394333429,1763465432467,-162.26120366,0.00016973,2]
[394333430,1763465432476,-500.0,0.00016973,2]
[394333431,1763465432485,-500.0,0.00016973,2]
[394333432,1763465432494,-413.34878165,0.00016973,2]
[394333433,1763465432503,-500.0,0.00016973,2]
[394333434,1763465432513,-500.0,0.00016973,2]
[394333435,1763465432524,-474.18379636,0.00016973,2]
[394333436,1763465432533,-500.0,0.00016973,2]
[394333437,1763465432543,-4668.0,0.00016978,2]
[394333438,1763465432552,-500.0,0.00016994,2]
[394333439,1763465432561,-3874.0,0.00016995,2]
[394333440,1763465432570,-238808.1577709,0.00016995,2]
[394333441,1763465432579,-151.0,0.00016996,2]
[394333442,1763465432588,-151.0,0.00016997,2]
[394333443,1763465432597,-151.0,0.00016997,2]
[394333444,1763465432607,-500.0,0.00016999,2]
[394333445,1763465432620,-500.0,0.00016999,2]
[394333446,1763465432633,-500.0,0.00016999,2]
[394333447,1763465432643,-500.0,0.00016999,2]
[394333448,1763465432652,-262.62356826,0.00016999,2]
[394333449,1763465432663,-500.0,0.00016999,2]
[394333450,1763465432677,-500.0,0.00016999,2]
[394333451,1763465432686,-500.0,0.00016999,2]
[394333452,1763465432696,-10410.95818753,0.00017,2]
[394333453,1763465432708,-36587.33805747,0.00017,2]
[394333454,1763465432719,-71315.83885713,0.00017,2]
[394333463,1763465437489,-150.0,0.000169,2]
[394333465,1763465437500,-150.98266863,0.00016994,2]
[394333467,1763465437510,-319.52655295,0.00016994,2]
[394333468,1763465437520,-2249.49077842,0.00017,2]
[394333479,1763465439787,-2718.80445789,0.00017,2]
[394333480,1763465439805,-5270.9757143,0.00017,2]
[394333481,1763465439817,-1583.06796825,0.00017,2]
[394333482,1763465439883,-58967.59340363,0.00017,2]
[394333515,1763465442929,-3994.62629436,0.00016182,2]
[394333516,1763465442987,-4122.76392,0.00016182,2]
[394333554,1763465445974,-503.11537298,0.00016182,2]
[394333555,1763465446023,-1091.7128056,0.00016182,2]
[394333556,1763465446034,-1228.2,0.00016182,2]
[394333557,1763465446045,-1144.30681152,0.00016182,2]
[394333558,1763465446056,-1095.8988,0.00016182,2]
[394333586,1763465493172,1924.944,0.00015858,2]
[394333610,1763465550642,80.23049798,0.00016095,2]
[394333611,1763465550670,2375.44950202,0.00016095,2]
[394333612,1763465593296,500.0,0.00026739,120]
[394333613,1763465598989,508.040456,0.00026739,120]
[394333615,1763465602408,500.0,0.00026739,120]
[394333616,1763465605542,4431.98038886,0.00016082,2]
[394333617,1763465679230,3192.58010912,0.00016025,2]
[394333618,1763465679252,7772.27989088,0.00016025,2]
[394333619,1763465686025,1679.19,0.00016023,2]
[394333632,1763465709555,5216.11116936,0.00016082,2]
[394333633,1763465742240,200.0,0.00015682,2]
[394333634,1763465748558,546.65874581,0.00016081,2]
[394333635,1763465748780,546.65874581,0.00016082,2]
[394333636,1763465750387,261.89472062,0.00016082,2]
[394333637,1763465754761,411.428874,0.00016082,2]
[394333638,1763465754783,135.22987181,0.00016082,2]
[394333639,1763465794240,212.77031832,0.00016082,2]
[394333640,1763465847765,999.0,0.00015936,3]
[394333641,1763465870811,-500.0,0.00016179,2]
[394333642,1763465870851,-300.0,0.0001618,2]
[394333643,1763465870881,-1200.0,0.0001618,2]
[394333644,1763465870911,-223.66858706,0.00016181,2]
[394333645,1763465870942,-500.0,0.00016181,2]
[394333646,1763465870973,-500.0,0.00016181,2]
[394333647,1763465871005,-500.0,0.00016181,2]
[394333648,1763465871035,-500.0,0.00016181,2]
[394333649,1763465871065,-500.0,0.00016181,2]
[394333650,1763465871095,-52.67282588,0.00016181,2]
[394333651,1763465871384,-447.32717412,0.00016181,2]
[394333652,1763465871417,-500.0,0.00016181,2]
[394333653,1763465871447,-500.0,0.00016181,2]
[394333654,1763465871477,-500.0,0.00016181,2]
[394333655,1763465871508,-500.0,0.00016181,2]
[394333656,1763465871542,-500.0,0.00016181,2]
[394333657,1763465871573,-500.0,0.00016181,2]
[394333658,1763465871604,-500.0,0.00016181,2]
[394333659,1763465871640,-500.0,0.00016181,2]
[394333660,1763465871672,-500.0,0.00016181,2]
[394333661,1763465871718,-500.0,0.00016181,2]
[394333662,1763465871750,-500.0,0.00016181,2]
[394333663,1763465871786,-500.0,0.00016181,2]
[394333664,1763465871821,-500.0,0.00016181,2]
[394333665,1763465871855,-500.0,0.00016181,2]
[394333666,1763465871885,-500.0,0.00016181,2]
[394333667,1763465871918,-500.0,0.00016181,2]
[394333668,1763465871950,-500.0,0.00016181,2]
[394333669,1763465871980,-500.0,0.00016181,2]
[394333670,1763465872016,-500.0,0.00016181,2]
[394333671,1763465872327,-242.33999901,0.00016181,2]
[394333672,1763465872358,-500.0,0.00016181,2]
[394333673,1763465872390,-500.0,0.00016181,2]
[394333674,1763465872420,-500.0,0.00016181,2]
[394333675,1763465872450,-500.0,0.00016181,2]
[394333676,1763465872480,-500.0,0.00016181,2]
[394333677,1763465872682,-500.0,0.00016181,2]
[394333678,1763465872714,-250.0,0.00016181,2]
[394333679,1763465872744,-500.0,0.00016181,2]
[394333680,1763465872777,-500.0,0.00016181,2]
[394333681,1763465872807,-500.0,0.00016181,2]
[394333682,1763465872917,-300.0,0.00016181,2]
[394333683,1763465872945,-1200.0,0.00016181,2]
[394333684,1763465872972,-550.0,0.00016181,2]
[394333685,1763465874190,-123.55845981,0.00016182,2]
[394333687,1763465882633,-500.0,0.00016181,2]
[394333688,1763465882670,-9000.01,0.00016182,2]
[394333689,1763465882721,-10000.01,0.00016182,2]
[394333690,1763465882830,-10000.01,0.00016182,2]
[394333691,1763465882970,-10000.01,0.00016182,2]
[394333692,1763465887478,155.18959707,0.00016101,20]
[394333695,1763465914221,50.39712968,0.00015955,2]
[394333696,1763465914243,1449.60287032,0.00015955,2]
[394333697,1763465916943,-554.24199268,0.00016181,2]
[394333698,1763465916964,-357.18688132,0.00016181,2]
[394333699,1763465917940,-142.81311868,0.00016181,2]
[394333700,1763465917962,-500.0,0.00016181,2]
[394333701,1763465917984,-500.0,0.00016181,2]
[394333702,1763465918007,-445.75800732,0.00016181,2]
[394333703,1763465918030,-205.13397946,0.00016181,2]
[394333704,1763465918058,-500.0,0.00016181,2]
[394333705,1763465918084,-500.0,0.00016181,2]
[394333706,1763465918110,-500.0,0.00016181,2]
[394333707,1763465918135,-500.0,0.00016181,2]
[394333708,1763465918161,-500.0,0.00016181,2]
[394333709,1763465918187,-500.0,0.00016181,2]
[394333710,1763465918212,-93.03061576,0.00016181,2]
[394333711,1763465919183,-316.0168159,0.00016181,2]
[394333712,1763465919246,500.0,0.00016079,2]
[394333713,1763465920431,-90.95256834,0.00016181,2]
[394333714,1763465920461,-465.0,0.00016181,2]
[394333715,1763465920491,-135.64293854,0.00016181,2]
[394333716,1763465943619,1000.0,0.00016082,2]
[394333717,1763465951438,-300.0,0.0001618,2]
[394333718,1763465951467,-441.76156172,0.00016181,2]
[394333719,1763465951496,-500.0,0.00016181,2]
[394333720,1763465951527,-500.0,0.00016181,2]
[394333721,1763465951556,-500.0,0.00016181,2]
[394333722,1763465951585,-348.32790758,0.00016181,2]
[394333723,1763465951615,-500.0,0.00016181,2]
[394333724,1763465951643,-1022.48,0.00016181,2]
[394333725,1763465951669,-550.0,0.00016181,2]
[394333726,1763465954322,-7725.27819108,0.00016182,2]
[394333727,1763465960380,-10000.01,0.00016182,2]
[394333728,1763465980617,10000.01,0.00016082,2]
[394333729,1763465980640,10000.01,0.00016082,2]
[394333730,1763465980666,10000.01,0.00016082,2]
[394333731,1763465980687,10000.01,0.00016082,2]
[394333732,1763465980708,10000.01,0.00016082,2]
[394333733,1763465980729,10000.01,0.00016082,2]
[394333734,1763465980750,10000.01,0.00016082,2]
[394333735,1763465980771,10000.01,0.00016082,2]
[394333736,1763465980794,8313.1663,0.00016082,2]
[394333737,1763465986479,1686.8437,0.00016082,2]
[394333738,1763465986500,813.1563,0.00016082,2]
[394333739,1763465991838,4325.27123421,0.00016082,2]
[394333740,1763466040171,499.6012225,0.00016072,2]
[394333741,1763466046044,499.60122249,0.00016077,2]
[394333742,1763466052068,499.60122249,0.00016082,2]
[394333743,1763466063605,200.0,0.00016002,2]
[394333744,1763466085651,259.2950117,0.00016082,2]
[394333745,1763466090195,216.0642,0.0001608,2]
[394333746,1763466093228,1542.663,0.00015858,2]
[394333747,1763466109319,1144.75658661,0.00016082,2]
[394333748,1763466109344,34.39923396,0.00016082,2]
[394333769,1763466129596,210.94789599,0.00016082,2]
[394333789,1763466135024,2751.0,0.00015831,2]
[394333802,1763466151703,7003.66287005,0.00016082,2]
[394333803,1763466151724,10000.01,0.00016082,2]
[394333804,1763466151744,10000.01,0.00016082,2]
[394333805,1763466151764,10000.01,0.00016082,2]
[394333806,1763466151784,10000.01,0.00016082,2]
[394333807,1763466151805,10000.01,0.00016082,2]
[394333808,1763466151825,10000.01,0.00016082,2]
[394333809,1763466151845,10000.01,0.00016082,2]
[394333810,1763466151865,10000.01,0.00016082,2]
[394333811,1763466151892,1386.26342995,0.00016082,2]
[394333812,1763466157798,2500.0,0.00016082,2]
[394333820,1763466219824,5034.84283427,0.00016082,2]
[394333821,1763466276303,200.0,0.00016002,2]
[394333822,1763466296396,166.66,0.00014995,2]
[394333823,1763466296610,166.66,0.00015311,2]
[394333824,1763466296837,166.66,0.00015626,2]
[394333825,1763466297047,166.66,0.00015942,2]
[394333826,1763466322304,171.86246686,0.00016072,2]
[394333827,1763466327265,2391.9783,0.00016082,2]
[394333828,1763466337549,299.22547216,0.00016072,2]
[394333830,1763466343619,299.22547216,0.00016077,2]
[394333831,1763466352473,299.22547216,0.00016082,2]
[394333834,1763466370955,256.41943152,0.00016082,2]
[394333835,1763466378046,4195.58410647,0.00016082,2]
[394333836,1763466398298,150.0,0.00015744,2]
[394333840,1763466464076,1269.84927867,0.00016082,2]
[394333841,1763466464104,10000.01,0.00016082,2]
[394333842,1763466464130,10000.01,0.00016082,2]
[394333843,1763466464154,10000.01,0.00016082,2]
[394333844,1763466464179,10000.01,0.00016082,2]
[394333845,1763466464205,10000.01,0.00016082,2]
[394333846,1763466464230,10000.01,0.00016082,2]
[394333847,1763466464255,10000.01,0.00016082,2]
[394333848,1763466464287,10000.01,0.00016082,2]
[394333849,1763466464313,10000.01,0.00016082,2]
[394333850,1763466464809,-8764.32438992,0.00016082,2]
[394333851,1763466465395,-406.96938424,0.00016082,2]
[394333852,1763466466411,-554.24199268,0.00016081,2]
[394333853,1763466467062,-300.0,0.00016081,2]
[394333854,1763466467473,-345.75800732,0.00016081,2]
[394333855,1763466467504,-154.24199268,0.00016082,2]
[394333856,1763466468628,-205.13397946,0.00016082,2]
[394333857,1763466469555,-500.0,0.00016082,2]
[394333858,1763466470459,-500.0,0.00016082,2]
[394333859,1763466470850,171.52,0.00012567,2]
[394333860,1763466470910,-8989.4739968,0.00016082,2]
[394333861,1763466471308,-500.0,0.00016082,2]
[394333862,1763466472281,-465.0,0.00016082,2]
[394333863,1763466473143,-500.0,0.00016082,2]
[394333864,1763466474197,-500.0,0.00016082,2]
[394333865,1763466475266,-500.0,0.00016082,2]
[394333866,1763466476207,-445.75800732,0.00016082,2]
[394333867,1763466476926,-401.92771431,0.00016082,2]
[394333868,1763466477121,-593.03061576,0.00016082,2]
[394333869,1763466477388,-878.90373578,0.00016082,2]
[394333870,1763466479368,-10000.01,0.00016082,2]
[394333871,1763466479468,-10000.01,0.00016082,2]
[394333872,1763466479589,-10000.01,0.00016082,2]
[394333873,1763466479709,-10000.01,0.00016082,2]
[394333874,1763466479809,-10000.01,0.00016082,2]
[394333875,1763466479919,-10000.01,0.00016082,2]
[394333876,1763466480043,-10000.01,0.00016082,2]
[394333877,1763466480292,-10000.01,0.00016082,2]
[394333878,1763466480397,-10000.01,0.00016082,2]
[394333879,1763466480515,-10000.01,0.00016082,2]
[394333880,1763466485421,-300.0,0.00016081,2]
[394333881,1763466485450,-300.0,0.00016081,2]
[394333882,1763466485480,-531.0,0.00016081,2]
[394333883,1763466485546,-7738.01,0.00016082,2]
[394333884,1763466485579,-10000.01,0.00016082,2]
[394333885,1763466485654,-10000.01,0.00016082,2]
[394333886,1763466485784,-10000.01,0.00016082,2]
[394333887,1763466485903,-10000.01,0.00016082,2]
[394333888,1763466486012,-10000.01,0.00016082,2]
[394333889,1763466486120,-10000.01,0.00016082,2]
[394333890,1763466486234,-10000.01,0.00016082,2]
[394333891,1763466486336,-10000.01,0.00016082,2]
[394333892,1763466486452,-10000.01,0.00016082,2]
[394333893,1763466491474,-10000.01,0.00016082,2]
[394333894,1763466491574,-10000.01,0.00016082,2]
[394333895,1763466491671,-10000.01,0.00016082,2]
[394333896,1763466491815,-10000.01,0.00016082,2]
[394333897,1763466491941,-10000.01,0.00016082,2]
[394333898,1763466492066,-10000.01,0.00016082,2]
[394333899,1763466492203,-10000.01,0.00016082,2]
[394333900,1763466492317,-10000.01,0.00016082,2]
[394333901,1763466492424,-10000.01,0.00016082,2]
[394333902,1763466492532,-10000.01,0.00016082,2]
[394333903,1763466503646,-10000.01,0.00016082,2]
[394333904,1763466503804,-10000.01,0.00016082,2]
[394333905,1763466503924,-10000.01,0.00016082,2]
[394333906,1763466504040,-10000.01,0.00016082,2]
[394333907,1763466504185,-10000.01,0.00016082,2]
[394333908,1763466504316,-10000.01,0.00016082,2]
[394333909,1763466504445,-10000.01,0.00016082,2]
[394333923,1763466635426,-195.78791334,0.00015972,2]
[394333924,1763466636686,-212.9,0.00016004,2]
[394333925,1763466636696,-220.48,0.00016072,2]
[394333926,1763466636705,-1200.0,0.0001608,2]
[394333927,1763466636714,-300.0,0.0001608,2]
[394333928,1763466636723,-500.0,0.00016081,2]
[394333929,1763466636732,-554.24199268,0.00016081,2]
[394333930,1763466636742,-500.0,0.00016081,2]
[394333931,1763466636980,-445.75800732,0.00016081,2]
[394333932,1763466636998,-500.0,0.00016081,2]
[394333933,1763466637013,-205.13397946,0.00016081,2]
[394333935,1763466637022,-500.0,0.00016081,2]
[394333937,1763466637034,-500.0,0.00016081,2]
[394333939,1763466637045,-500.0,0.00016081,2]
[394333941,1763466637054,-500.0,0.00016081,2]
[394333943,1763466637064,-500.0,0.00016081,2]
[394333945,1763466637081,-500.0,0.00016081,2]
[394333947,1763466637091,-500.0,0.00016081,2]
[394333949,1763466637100,-68.38602054,0.00016081,2]
[394333952,1763466637114,-431.61397946,0.00016081,2]
[394333955,1763466637124,-500.0,0.00016081,2]
[394333957,1763466637133,-62.50853956,0.00016081,2]
[394333959,1763466637144,-326.03172292,0.00016081,2]
[394333963,1763466637156,-111.45973752,0.00016081,2]
[394333965,1763466637166,-500.0,0.00016081,2]
[394333967,1763466637175,-500.0,0.00016081,2]
[394333969,1763466637184,-500.0,0.00016081,2]
[394333971,1763466637194,-500.0,0.00016081,2]
[394333973,1763466637203,-456.17169597,0.00016081,2]
[394333975,1763466637214,-43.82830403,0.00016081,2]
[394333977,1763466637224,-500.0,0.00016081,2]
[394333979,1763466637233,-83.20585008,0.00016081,2]
[394333983,1763466637254,-416.79414992,0.00016081,2]
[394333984,1763466637263,-500.0,0.00016081,2]
[394333986,1763466637272,-500.0,0.00016081,2]
[394333988,1763466637281,-500.0,0.00016081,2]
[394333990,1763466637290,-500.0,0.00016081,2]
[394333992,1763466637299,-299.06679064,0.00016081,2]
[394333994,1763466637308,-500.0,0.00016081,2]
[394333996,1763466637317,-500.0,0.00016081,2]
[394333997,1763466637326,-500.0,0.00016081,2]
[394333999,1763466637335,-500.0,0.00016081,2]
[394334001,1763466637344,-500.0,0.00016081,2]
[394334003,1763466637353,-500.0,0.00016081,2]
[394334005,1763466637363,-500.0,0.00016081,2]
[394334007,1763466637372,-500.0,0.00016081,2]
[394334009,1763466637381,-500.0,0.00016081,2]
[394334011,1763466637391,-500.0,0.00016081,2]
[394334013,1763466637400,-500.0,0.00016081,2]
[394334015,1763466637409,-200.0,0.00016081,2]
[394334017,1763466637418,-500.0,0.00016081,2]
[394334019,1763466637427,-500.0,0.00016081,2]
[394334021,1763466637436,-500.0,0.00016081,2]
[394334023,1763466637445,-363.79236535,0.00016081,2]
[394334025,1763466637454,-8327.39271856,0.00016082,2]
[394334028,1763466637466,-492.23657152,0.00016082,2]
[394334030,1763466637476,-1166.96670514,0.00016082,2]
[394334032,1763466637490,-1061.10712288,0.00016082,2]
[394334061,1763466637755,-664.98932389,0.00016082,2]
[394334066,1763466637863,-419.04902757,0.00016082,2]
[394334209,1763466639648,-490.067985,0.00016082,2]
[394334211,1763466639701,-839.15,0.00016082,2]
[394334212,1763466639715,-3990.95930724,0.00016082,2]
[394334213,1763466639863,-1152.16390282,0.00016082,2]
[394334214,1763466639875,-682.75,0.00016082,2]
[394334215,1763466639887,-2172.71,0.00016082,2]
[394334216,1763466639983,-1.6e-07,0.00016082,2]
[394334217,1763466639994,-1634.11084078,0.00016082,2]
[394334218,1763466640006,-4156.19990002,0.00016082,2]
[394334219,1763466640028,-920.91199056,0.00016082,2]
[394334493,1763466646286,-12829.70903067,0.00016082,2]
[394334494,1763466646300,-22890.6252674,0.00016082,2]
[394334495,1763466646313,-30212.72686233,0.00016082,2]
[394334496,1763466646326,-25833.04004594,0.00016082,2]
[394334497,1763466646337,-1418.83999992,0.00016082,2]
[394334503,1763466686534,-1000.0,0.00016081,2]
[394334504,1763466686566,-363.79236535,0.00016081,2]
[394334505,1763466686600,-500.0,0.00016081,2]
[394334506,1763466686631,-500.0,0.00016081,2]
[394334507,1763466686666,-500.0,0.00016081,2]
[394334508,1763466686698,-552.58687119,0.00016081,2]
[394334509,1763466686727,-300.0,0.00016081,2]
[394334510,1763466686876,-2567.25152692,0.00016082,2]
[394334511,1763466686919,-10000.01,0.00016082,2]
[394334512,1763466686936,-10000.01,0.00016082,2]
[394334513,1763466686984,-10000.01,0.00016082,2]
[394334514,1763466687143,-10000.01,0.00016082,2]
[394334515,1763466687265,-10000.01,0.00016082,2]
[394334516,1763466687393,-10000.01,0.00016082,2]
[394334517,1763466687511,-10000.01,0.00016082,2]
[394334518,1763466687619,-10000.01,0.00016082,2]
[394334519,1763466687751,-10000.01,0.00016082,2]
[394334520,1763466692434,-1569.0,0.00015711,2]
[394334521,1763466692467,-6862.01,0.00016082,2]
[394334522,1763466692574,-10000.01,0.00016082,2]
[394334523,1763466692691,-10000.01,0.00016082,2]
[394334524,1763466692790,-10000.01,0.00016082,2]
[394334525,1763466692900,-10000.01,0.00016082,2]
[394334526,1763466693008,-10000.01,0.00016082,2]
[394334527,1763466693157,-4098.19122426,0.00016082,2]
[394334528,1763466693180,-1803.62755148,0.00016082,2]
[394334529,1763466693291,-3848.8246,0.00016082,2]
[394334530,1763466693313,-2302.3608,0.00016082,2]
[394334531,1763466693738,195.78791334,0.00016081,2]
[394334532,1763466693773,499.99999999,0.00016081,2]
[394334533,1763466704467,200.34156315,0.00016001,2]
[394334535,1763466806101,9103.88052352,0.00015982,2]
[394334536,1763466806126,10000.01,0.00015982,2]
[394334537,1763466806151,10000.01,0.00015982,2]
[394334538,1763466806176,10000.01,0.00015982,2]
[394334539,1763466806199,10000.01,0.00015982,2]
[394334540,1763466806227,10000.01,0.00015982,2]
[394334541,1763466806250,10000.01,0.00015982,2]
[394334542,1763466806274,10000.01,0.00015982,2]
[394334543,1763466806297,10000.01,0.00015982,2]
[394334544,1763466806321,10000.01,0.00015982,2]
[394334545,1763466806872,-304.21208666,0.00015734,2]
[394334546,1763466807802,-305.78791334,0.00015734,2]
[394334547,1763466817628,-10000.01,0.00015982,2]
[394334548,1763466817742,-10000.01,0.00015982,2]
[394334549,1763466817863,-10000.01,0.00015982,2]
[394334550,1763466818001,-10000.01,0.00015982,2]
[394334551,1763466818146,-10000.01,0.00015982,2]
[394334552,1763466818281,-10000.01,0.00015982,2]
[394334553,1763466818556,-10000.01,0.00015982,2]
[394334554,1763466818570,-10000.01,0.00015982,2]
[394334555,1763466818614,-10000.01,0.00015982,2]
[394334556,1763466818776,-10000.01,0.00015982,2]
[394334557,1763466819231,-1343.57639144,0.00015982,2]
[394334558,1763466823669,-10000.01,0.00015982,2]
[394334559,1763466823786,-10000.01,0.00015982,2]